[Event "2nd Gujarat Open 2019"]
[Site "Ahmedabad, Gujarat"]
[Date "2019.09.23"]
[Round "3.7"]
[White "Sanket Chakravarty"]
[Black "Lugovskoy, Maxim"]
[Result "0-1"]
[ECO "A09"]
[WhiteElo "2158"]
[BlackElo "2422"]
[Annotator "NA RC"]
[PlyCount "166"]
[EventDate "2019.09.22"]
[EventCountry "IND"]
[SourceTitle "playchess.com"]
[Source "ChessBase"]
[SourceQuality "1"]
[TimeControl "5400+30"]

1. c4 {[%emt 0:00:00]} e6 {[%emt 0:09:44]} 2. g3 {[%emt 0:00:00]} Nf6 {[%emt 0:00:03]} 3. Bg2 {[%emt 0:00:00]} d5 {[%emt 0:00:03]} 4. Nf3 {[%emt 0:00:00]} d4 {[%emt 0:00:03]} 5. O-O {[%emt 0:00:11]} c5 {[%emt 0:00:03]} 6. d3 {[%emt 0:00:11]} Nc6 {[%emt 0:00:04]} 7. e3 {[%emt 0:00:03]} Bd6 {[%emt 0:00:54]} 8. exd4 {[%emt 0:00:16]} cxd4 {[%emt 0:00:04]} 9. Na3 {[%emt 0:00:12]} e5 {[%emt 0:00:48]} 10. c5 {[%emt 0:00:04]} Bc7 {[%emt 0:02:17]} 11. Bg5 {[%emt 0:08:56]} O-O {[%emt 0:04:03]} 12. Nc4 {[%emt 0:00:43]} Be6 {[%emt 0:01:04]} 13. Nfd2 {[%emt 0:01:38]} h6 {[%emt 0:00:20]} 14. Bxf6 {[%emt 0:01:33]} Qxf6 {[%emt 0:00:06]} 15. Ne4 {[%emt 0:05:03]} Qe7 {[%emt 0:00:31]} 16. Ned6 {[%emt 0:07:58]} Bxc4 {[%emt 0:04:26]} 17. Nxb7 {[%emt 0:06:56]} Ba6 {[%emt 0:03:31]} 18. Bxc6 {[%emt 0:00:12]} Rab8 {[%emt 0:00:08]} 19. Qf3 {[%emt 0:02:58]} f5 {[%emt 0:05:57]} 20. Nd6 {[%emt 0:04:15]} Bxd6 {[%emt 0:01:35]} 21. Qd5+ {[%emt 0:01:19]} Kh8 {[%emt 0:05:44]} 22. cxd6 {[%emt 0:00:21]} Qf6 {[%emt 0:00:08]} 23. Rad1 {[%emt 0:06:52]} Rb6 {[%emt 0:12:54]} 24. f4 {[%emt 0:16:13]} e4 {[%emt 0:02:03]} 25. dxe4 {[%emt 0:01:03]} fxe4 {[%emt 0:00:10]} 26. Rfe1 {[%emt 0:00:17]} Bd3 {[%emt 0:04:25]} 27. Rc1 {[%emt 0:08:41]} Rd8 {[%emt 0:09:18]} 28. d7 {[%emt 0:00:54]} e3 {[%emt 0:00:59]} 29. Red1 {[%emt 0:06:56]} Be2 {[%emt 0:01:47]} 30. Rxd4 {[%emt 0:01:19]} Bf3 {[%emt 0:00:06]} 31. Re4 {[%emt 0:01:17]} Bxe4 {[%emt 0:02:49]} 32. Qxe4 {[%emt 0:00:02]} Rf8 {[%emt 0:06:34]} 33. Ba4 {[%emt 0:12:35]} Re6 {[%emt 0:01:18]} 34. Qb4 {[%emt 0:00:45]} e2 {[%emt 0:00:13]} 35. Kf2 {[%emt 0:00:32]} a5 {[%emt 0:03:03]} 36. Qd2 {[%emt 0:01:23]} Re4 {[%emt 0:02:21]} 37. Bc2 {[%emt 0:02:20]} Qb6+ {[%emt 0:01:34]} 38. Kf3 {[%emt 0:01:09]} Rd4 {[%emt 0:02:02]} 39. Qxe2 {[%emt 0:00:02]} Qc6+ {[%emt 0:01:09]} 40. Kf2 {[%emt 0:00:57]} Qxd7 {[%emt 0:00:04]} 41. Rd1 {[%emt 0:00:32]} Rc8 {[%emt 0:02:32]} 42. Bf5 {[%emt 0:01:12]} Qd8 {[%emt 0:01:36]} 43. Rxd4 {[%emt 0:00:59]} Qxd4+ {[%emt 0:00:01]} 44. Kf3 {[%emt 0:01:11]} Rf8 {[%emt 0:03:33]} 45. Bb1 {[%emt 0:01:02]} Rd8 {[%emt 0:01:21]} 46. Qc2 {[%emt 0:01:04]} Qd1+ {[%emt 0:00:01]} 47. Ke3 {[%emt 0:00:01]} Qxc2 {[%emt 0:00:43]} 48. Bxc2 {[%emt 0:00:01]} Kg8 {[%emt 0:00:08]} 49. a3 {[%emt 0:00:49]} Rb8 {[%emt 0:00:22]} 50. b3 {[%emt 0:00:21]} Kf7 {[%emt 0:00:10]} 51. Kd4 {[%emt 0:00:43]} Ke7 {[%emt 0:00:17]} 52. h3 {[%emt 0:00:36]} Kd6 {[%emt 0:00:29]} 53. g4 {[%emt 0:00:21]} g5 {[%emt 0:01:27]} 54. fxg5 {[%emt 0:00:08]} hxg5 {[%emt 0:00:02]} 55. Ke4 {[%emt 0:00:15]} Rb5 {[%emt 0:00:34]} 56. a4 {[%emt 0:01:01]} Re5+ {[%emt 0:00:25]} 57. Kf3 {[%emt 0:00:03]} Rc5 {[%emt 0:00:09]} 58. Bd3 {[%emt 0:00:53]} Rc3 {[%emt 0:00:04]} 59. Ke4 {[%emt 0:00:04]} Rxb3 {[%emt 0:00:02]} 60. Bb5 {[%emt 0:00:11]} Ke7 {[%emt 0:02:40]} 61. Ke5 {[%emt 0:01:24]} Rxh3 {[%emt 0:01:19]} 62. Kf5 {[%emt 0:00:53]} Rb3 {[%emt 0:00:04]} 63. Be2 {[%emt 0:00:12]} Rb4 {[%emt 0:00:39]} 64. Bd1 {[%emt 0:00:07]} Rd4 {[%emt 0:00:01]} 65. Bb3 {[%emt 0:00:08]} Rd3 {[%emt 0:00:05]} 66. Bc2 {[%emt 0:01:20]} Rc3 {[%emt 0:00:10]} 67. Bd1 {[%emt 0:00:15]} Rc5+ {[%emt 0:00:02]} 68. Kg6 {[%emt 0:00:42]} Kd6 {[%emt 0:03:39]} 69. Bb3 {[%emt 0:00:44]} Rc3 {[%emt 0:02:04]} 70. Bf7 {[%emt 0:00:17]} Ke7 {[%emt 0:01:15]} 71. Bd5 {[%emt 0:00:41]} Rd3 {[%emt 0:00:17]} 72. Be4 {[%emt 0:01:07]} Rd4 {[%emt 0:00:01]} 73. Bf5 {[%emt 0:00:08]} Rxa4 {[%emt 0:00:02]} 74. Kxg5 {[%emt 0:00:06]} Ra1 {[%emt 0:00:03]} 75. Bc2 {[%emt 0:00:25]} a4 {[%emt 0:00:04]} 76. Kg6 {[%emt 0:00:44]} a3 {[%emt 0:00:04]} 77. g5 {[%emt 0:00:15]} Ra2 {[%emt 0:00:03]} 78. Bb3 {[%emt 0:00:06]} Rb2 {[%emt 0:00:02]} 79. Bc4 {[%emt 0:00:10]} a2 {[%emt 0:00:07]} 80. Bxa2 {[%emt 0:00:04]} Rxa2 {[%emt 0:00:03]} 81. Kg7 {[%emt 0:00:03]} Ke6 {[%emt 0:00:54]} 82. g6 {[%emt 0:00:04]} Kf5 {[%emt 0:00:12]} 83. Kh7 {[%emt 0:00:06]} Rh2+ {[%emt 0:00:03]} 0-1

[Event "2nd Gujarat Open 2019"]
[Site "Ahmedabad, Gujarat"]
[Date "2019.09.23"]
[Round "3.8"]
[White "Pranav, Shetty"]
[Black "Himanshu, Sharma"]
[Result "1-0"]
[ECO "B54"]
[WhiteElo "2124"]
[BlackElo "2408"]
[Annotator "NA RC"]
[PlyCount "67"]
[EventDate "2019.09.22"]
[EventCountry "IND"]
[SourceTitle "playchess.com"]
[Source "ChessBase"]
[SourceQuality "1"]
[TimeControl "5400+30"]

1. e4 {[%emt 0:00:00]} c5 {[%emt 0:00:00]} 2. Nf3 {[%emt 0:00:00]} e6 {[%emt 0:00:28]} 3. d4 {[%emt 0:00:00]} cxd4 {[%emt 0:00:08]} 4. Nxd4 {[%emt 0:00:02]} Nc6 {[%emt 0:00:27]} 5. Nc3 {[%emt 0:00:08]} d6 {[%emt 0:00:44]} 6. g4 {[%emt 0:04:49]} a6 {[%emt 0:10:27]} 7. Be3 {[%emt 0:03:34]} Nge7 {[%emt 0:02:10]} 8. Nb3 {[%emt 0:08:42]} b5 {[%emt 0:04:44]} 9. Qe2 {[%emt 0:21:25]} Bd7 {[%emt 0:15:57]} 10. O-O-O {[%emt 0:08:54]} b4 {[%emt 0:05:40]} 11. Na4 {[%emt 0:09:21]} Nc8 {[%emt 0:00:49]} 12. Qd2 {[%emt 0:04:41]} Be7 {[%emt 0:10:29]} 13. f4 {[%emt 0:01:13]} Qc7 {[%emt 0:01:36]} 14. e5 {[%emt 0:09:24]} Nxe5 {[%emt 0:03:39]} 15. fxe5 {[%emt 0:09:53]} Bxa4 {[%emt 0:00:55]} 16. Qxb4 {[%emt 0:00:43]} Bd7 {[%emt 0:18:43]} 17. exd6 {[%emt 0:01:27]} Bxd6 {[%emt 0:00:13]} 18. Bc5 {[%emt 0:02:40]} Bxc5 {[%emt 0:06:36]} 19. Nxc5 {[%emt 0:00:54]} Bc6 {[%emt 0:03:34]} 20. Nxa6 {[%emt 0:01:43]} Qb7 {[%emt 0:00:45]} 21. Qxb7 {[%emt 0:02:01]} Bxb7 {[%emt 0:00:03]} 22. Bb5+ {[%emt 0:00:03]} Ke7 {[%emt 0:02:11]} 23. Rd7+ {[%emt 0:00:08]} Kf6 {[%emt 0:00:11]} 24. Rf1+ {[%emt 0:00:03]} Kg5 {[%emt 0:00:58]} 25. Rxb7 {[%emt 0:00:51]} Nd6 {[%emt 0:00:06]} 26. Rb6 {[%emt 0:00:06]} Nxb5 {[%emt 0:02:32]} 27. Rxb5+ {[%emt 0:00:01]} Kxg4 {[%emt 0:00:48]} 28. Nb4 {[%emt 0:00:06]} Rab8 {[%emt 0:00:30]} 29. a4 {[%emt 0:00:20]} f5 {[%emt 0:00:32]} 30. Nc6 {[%emt 0:00:38]} Ra8 {[%emt 0:03:04]} 31. b3 {[%emt 0:02:46]} g5 {[%emt 0:01:55]} 32. Nd4 {[%emt 0:00:12]} Ra6 {[%emt 0:00:30]} 33. Re5 {[%emt 0:00:16]} Re8 {[%emt 0:00:45]} 34. Nxf5 {[%emt 0:00:21]} 1-0

[Event "2nd Gujarat Open 2019"]
[Site "Ahmedabad, Gujarat"]
[Date "2019.09.23"]
[Round "3.11"]
[White "Thanki, Hemal Karsanji"]
[Black "Siddharth, Jagadeesh"]
[Result "0-1"]
[ECO "B12"]
[WhiteElo "2098"]
[BlackElo "2362"]
[Annotator "NA"]
[PlyCount "110"]
[EventDate "2019.09.22"]
[EventCountry "IND"]
[SourceTitle "playchess.com"]
[Source "ChessBase"]
[SourceQuality "1"]
[TimeControl "5400+30"]

1. e4 {[%emt 0:01:11]} c6 {[%emt 0:00:00]} 2. d4 {[%emt 0:00:07]} d5 {[%emt 0:00:00]} 3. e5 {[%emt 0:00:04]} Bf5 {[%emt 0:00:06]} 4. h4 {[%emt 0:00:04]} h5 {[%emt 0:00:11]} 5. Bd3 {[%emt 0:00:10]} Bxd3 {[%emt 0:00:06]} 6. Qxd3 {[%emt 0:00:04]} Qa5+ {[%emt 0:00:09]} 7. Nd2 {[%emt 0:00:15]} e6 {[%emt 0:00:05]} 8. Ngf3 {[%emt 0:02:12]} Qa6 {[%emt 0:01:07]} 9. c4 {[%emt 0:00:05]} Bb4 {[%emt 0:00:10]} 10. b3 {[%emt 0:00:18]} Ne7 {[%emt 0:00:06]} 11. O-O {[%emt 0:00:52]} Nf5 {[%emt 0:00:07]} 12. a3 {[%emt 0:09:27]} Be7 {[%emt 0:01:42]} 13. g3 {[%emt 0:03:30]} Nd7 {[%emt 0:00:08]} 14. Qb1 {[%emt 0:04:12]} O-O {[%emt 0:01:53]} 15. Re1 {[%emt 0:03:26]} Rfd8 {[%emt 0:02:52]} 16. c5 {[%emt 0:07:37]} b6 {[%emt 0:01:52]} 17. b4 {[%emt 0:00:08]} Rab8 {[%emt 0:14:10]} 18. Qc2 {[%emt 0:04:57]} bxc5 {[%emt 0:02:29]} 19. dxc5 {[%emt 0:07:55]} Rxb4 {[%emt 0:03:21]} 20. axb4 {[%emt 0:00:17]} Qxa1 {[%emt 0:00:03]} 21. Nb3 {[%emt 0:06:03]} Qa6 {[%emt 0:02:31]} 22. Bd2 {[%emt 0:03:26]} Nb8 {[%emt 0:03:44]} 23. Kg2 {[%emt 0:09:10]} Rd7 {[%emt 0:05:40]} 24. Ra1 {[%emt 0:03:02]} Qe2 {[%emt 0:02:29]} 25. Qc3 {[%emt 0:12:56]} d4 {[%emt 0:04:04]} 26. Nbxd4 {[%emt 0:05:06]} Nxd4 {[%emt 0:00:28]} 27. Nxd4 {[%emt 0:00:19]} Qe4+ {[%emt 0:00:08]} 28. Kg1 {[%emt 0:05:14]} Rxd4 {[%emt 0:01:33]} 29. Rxa7 {[%emt 0:01:43]} Bf8 {[%emt 0:00:40]} 30. Ra1 {[%emt 0:09:54]} Rd3 {[%emt 0:00:57]} 31. Qc1 {[%emt 0:00:16]} Nd7 {[%emt 0:00:34]} 32. Qe1 {[%emt 0:01:19]} Qxe1+ {[%emt 0:00:30]} 33. Bxe1 {[%emt 0:00:04]} Nxe5 {[%emt 0:00:09]} 34. Kg2 {[%emt 0:00:54]} Nf3 {[%emt 0:00:10]} 35. Rc1 {[%emt 0:00:30]} Nxe1+ {[%emt 0:00:08]} 36. Rxe1 {[%emt 0:00:04]} Rb3 {[%emt 0:00:10]} 37. Re4 {[%emt 0:00:09]} Be7 {[%emt 0:00:16]} 38. Rd4 {[%emt 0:01:26]} Bf6 {[%emt 0:00:15]} 39. Rd6 {[%emt 0:00:04]} Rxb4 {[%emt 0:00:08]} 40. Rxc6 {[%emt 0:00:04]} Rc4 {[%emt 0:00:14]} 41. Rc8+ {[%emt 0:00:07]} Kh7 {[%emt 0:00:02]} 42. Kf3 {[%emt 0:00:29]} Bd4 {[%emt 0:00:12]} 43. c6 {[%emt 0:00:06]} Rc2 {[%emt 0:00:05]} 44. Ke4 {[%emt 0:00:18]} Bxf2 {[%emt 0:00:08]} 45. Kf3 {[%emt 0:01:53]} Be1 {[%emt 0:00:20]} 46. g4 {[%emt 0:00:27]} hxg4+ {[%emt 0:00:14]} 47. Kxg4 {[%emt 0:00:02]} Rc4+ {[%emt 0:00:21]} 48. Kf3 {[%emt 0:00:24]} Bxh4 {[%emt 0:00:09]} 49. Ke3 {[%emt 0:00:16]} Bg3 {[%emt 0:00:20]} 50. Kd3 {[%emt 0:00:04]} Rc1 {[%emt 0:00:23]} 51. Kd2 {[%emt 0:00:06]} Bf4+ {[%emt 0:00:06]} 52. Kd3 {[%emt 0:00:01]} f5 {[%emt 0:00:17]} 53. Ke2 {[%emt 0:00:30]} e5 {[%emt 0:00:11]} 54. Kf3 {[%emt 0:01:04]} Rc3+ {[%emt 0:00:05]} 55. Ke2 {[%emt 0:00:03]} e4 {[%emt 0:59:12]} 0-1

[Event "2nd Gujarat Open 2019"]
[Site "Ahmedabad, Gujarat"]
[Date "2019.09.23"]
[Round "3.13"]
[White "Kumar, Gaurav"]
[Black "Neelash Saha"]
[Result "0-1"]
[ECO "B00"]
[WhiteElo "2096"]
[BlackElo "2334"]
[Annotator "NA"]
[PlyCount "44"]
[EventDate "2019.09.22"]
[EventCountry "IND"]
[SourceTitle "playchess.com"]
[Source "ChessBase"]
[SourceQuality "1"]
[TimeControl "5400+30"]

1. e4 b6 2. d4 Bb7 3. Bd3 e6 4. Nf3 d5 5. e5 c5 6. c3 Ne7 7. O-O Nec6 8. Ng5 cxd4 9. cxd4 Nxd4 10. Bxh7 Nbc6 11. Nxf7 Qh4 12. Nxh8 Qxh7 13. Qg4 Qxh8 14. Bg5 Bc5 15. Nc3 Nxe5 16. Qf4 Nf7 17. b4 Bd6 18. Qh4 Qxh4 19. Bxh4 Bxb4 20. Na4 Rc8 21. Rfd1 Ne2+ 22. Kh1 {[%emt 0:10:30]} Rc4 {[%emt 0:10:30]} 0-1

[Event "2nd Gujarat Open 2019"]
[Site "Ahmedabad, Gujarat"]
[Date "2019.09.23"]
[Round "3.16"]
[White "Pranav Vijay"]
[Black "Sparsh Khandelwal"]
[Result "1-0"]
[ECO "B27"]
[WhiteElo "2265"]
[BlackElo "1868"]
[Annotator "NA"]
[PlyCount "45"]
[EventDate "2019.09.22"]
[EventCountry "IND"]
[SourceTitle "playchess.com"]
[Source "ChessBase"]
[SourceQuality "1"]
[TimeControl "5400+30"]

1. e4 {[%emt 0:00:56]} c5 {[%emt 0:00:07]} 2. Nf3 {[%emt 0:00:12]} g6 {[%emt 0:00:40]} 3. d4 {[%emt 0:00:08]} cxd4 {[%emt 0:00:06]} 4. Qxd4 {[%emt 0:00:06]} Nf6 {[%emt 0:00:09]} 5. Bb5 {[%emt 0:00:05]} a6 {[%emt 0:00:17]} 6. e5 {[%emt 0:00:11]} axb5 {[%emt 0:00:34]} 7. exf6 {[%emt 0:00:08]} Nc6 {[%emt 0:02:30]} 8. Qd3 {[%emt 0:00:37]} e6 {[%emt 0:05:01]} 9. Nc3 {[%emt 0:02:51]} Bb4 {[%emt 0:00:43]} 10. O-O {[%emt 0:08:54]} O-O {[%emt 0:02:11]} 11. Bg5 {[%emt 0:06:22]} d5 {[%emt 0:11:24]} 12. a3 {[%emt 0:00:38]} Bc5 {[%emt 0:00:22]} 13. b4 {[%emt 0:03:10]} Bb6 {[%emt 0:03:03]} 14. Rfe1 {[%emt 0:00:56]} Re8 {[%emt 0:06:20]} 15. Qd2 {[%emt 0:01:22]} Bc7 {[%emt 0:15:34]} 16. Nxb5 {[%emt 0:01:02]} Bd6 {[%emt 0:00:51]} 17. c4 {[%emt 0:00:22]} Bf8 {[%emt 0:01:23]} 18. cxd5 {[%emt 0:00:14]} Na7 {[%emt 0:00:04]} 19. Nxa7 {[%emt 0:01:06]} Rxa7 {[%emt 0:00:05]} 20. dxe6 {[%emt 0:01:01]} Bxe6 {[%emt 0:00:04]} 21. Qxd8 {[%emt 0:00:10]} Rxd8 {[%emt 0:00:04]} 22. Rxe6 {[%emt 0:00:06]} h6 {[%emt 0:00:19]} 23. Ree1 {[%emt 0:01:22]} 1-0

[Event "2nd Gujarat Open 2019"]
[Site "Ahmedabad, Gujarat"]
[Date "2019.09.23"]
[Round "3.19"]
[White "Rahman, Ziaur"]
[Black "Jay Kundaliya"]
[Result "1-0"]
[ECO "A12"]
[WhiteElo "2492"]
[BlackElo "2097"]
[Annotator "ChessBase"]
[PlyCount "72"]
[EventDate "2019.09.22"]
[EventCountry "IND"]
[SourceTitle "playchess.com"]
[Source "ChessBase"]
[SourceQuality "1"]
[TimeControl "5400+30"]

1. Nf3 {[%emt 0:03:33]} d5 {[%emt 0:00:00]} 2. g3 {[%emt 0:00:48]} Nf6 {[%emt 0:01:15]} 3. Bg2 {[%emt 0:00:42]} c6 {[%emt 0:00:32]} 4. O-O {[%emt 0:00:08]} Bf5 {[%emt 0:01:44]} 5. b3 {[%emt 0:00:43]} h6 {[%emt 0:00:07]} 6. Bb2 {[%emt 0:00:06]} Nbd7 {[%emt 0:00:17]} 7. d3 {[%emt 0:00:18]} e6 {[%emt 0:00:18]} 8. Nbd2 {[%emt 0:00:12]} Bh7 {[%emt 0:13:14]} 9. c4 {[%emt 0:05:56]} Be7 {[%emt 0:03:07]} 10. a3 {[%emt 0:02:20]} a5 {[%emt 0:00:07]} 11. Ra2 {[%emt 0:01:04]} O-O {[%emt 0:00:10]} 12. Qa1 {[%emt 0:00:08]} Re8 {[%emt 0:06:24]} 13. Ne5 {[%emt 0:04:12]} Nxe5 {[%emt 0:00:36]} 14. Bxe5 {[%emt 0:00:06]} Bf8 {[%emt 0:04:58]} 15. Rc1 {[%emt 0:01:35]} Nd7 {[%emt 0:21:33]} 16. Bc3 {[%emt 0:01:36]} Qc7 {[%emt 0:06:10]} 17. b4 {[%emt 0:20:13]} axb4 {[%emt 0:03:48]} 18. axb4 {[%emt 0:01:27]} Rxa2 {[%emt 0:00:37]} 19. Qxa2 {[%emt 0:00:02]} d4 {[%emt 0:00:01]} 20. Bxd4 {[%emt 0:00:27]} Bxb4 {[%emt 0:00:04]} 21. Qb2 {[%emt 0:07:14]} e5 {[%emt 0:06:00]} 22. Be3 {[%emt 0:03:25]} Bc5 {[%emt 0:02:42]} 23. Rb1 {[%emt 0:02:04]} Bxe3 {[%emt 0:03:50]} 24. fxe3 {[%emt 0:00:02]} Nc5 {[%emt 0:24:16]} 25. Qb4 {[%emt 0:00:30]} Qe7 {[%emt 0:00:30]} 26. Nb3 {[%emt 0:00:30]} Nxb3 {[%emt 0:00:30]} 27. Rxb3 {[%emt 0:00:30]} Qxb4 {[%emt 0:00:30]} 28. Rxb4 {[%emt 0:00:30]} e4 {[%emt 0:00:30]} 29. Rxb7 {[%emt 0:00:30]} exd3 {[%emt 0:00:30]} 30. Bxc6 {[%emt 0:00:30]} Rc8 {[%emt 0:00:30]} 31. e4 {[%emt 0:00:30]} Bg6 {[%emt 0:00:30]} 32. Bd5 {[%emt 0:00:30]} dxe2 {[%emt 0:00:30]} 33. Kf2 {[%emt 0:00:30]} Bxe4 {[%emt 0:00:30]} 34. Bxe4 {[%emt 0:00:30]} Re8 {[%emt 0:00:30]} 35. Kxe2 {[%emt 0:00:30]} Rxe4+ {[%emt 0:00:30]} 36. Kd3 {[%emt 0:00:30]} Re1 {[%emt 0:00:30]} 1-0

[Event "2nd Gujarat Open 2019"]
[Site "Ahmedabad, Gujarat"]
[Date "2019.09.23"]
[Round "3.22"]
[White "Pimpalkhare Vedant"]
[Black "Eraschenkov, Denis"]
[Result "0-1"]
[ECO "D78"]
[WhiteElo "2104"]
[BlackElo "2390"]
[Annotator "NA"]
[PlyCount "69"]
[EventDate "2019.09.22"]
[EventCountry "IND"]
[SourceTitle "playchess.com"]
[Source "ChessBase"]
[SourceQuality "1"]
[TimeControl "5400+30"]

1. Nf3 {[%emt 0:00:00]} Nf6 {[%emt 0:00:00]} 2. c4 {[%emt 0:00:00]} g6 {[%emt 0:00:48]} 3. g3 {[%emt 0:02:10]} Bg7 {[%emt 0:00:13]} 4. Bg2 {[%emt 0:00:07]} O-O {[%emt 0:01:26]} 5. O-O {[%emt 0:00:25]} e6 {[%emt 0:02:42]} 6. d4 {[%emt 0:02:36]} d5 {[%emt 0:00:24]} 7. Nc3 {[%emt 0:02:28]} Nbd7 {[%emt 0:04:40]} 8. Ne5 {[%emt 0:06:41]} c6 {[%emt 0:06:14]} 9. cxd5 {[%emt 0:09:45]} exd5 {[%emt 0:00:24]} 10. Bf4 {[%emt 0:02:15]} Nh5 {[%emt 0:08:52]} 11. Nxd7 {[%emt 0:01:33]} Bxd7 {[%emt 0:01:11]} 12. Be3 {[%emt 0:11:31]} f5 {[%emt 0:11:03]} 13. Bf3 {[%emt 0:10:11]} f4 {[%emt 0:10:55]} 14. Bc1 {[%emt 0:04:02]} Bh3 {[%emt 0:03:47]} 15. Re1 {[%emt 0:02:16]} Qf6 {[%emt 0:08:45]} 16. Qb3 {[%emt 0:10:51]} Rf7 17. Bd2 {[%emt 0:00:30]} fxg3 18. hxg3 {[%emt 0:00:30]} Bg4 19. Na4 {[%emt 0:00:30]} Bxf3 20. exf3 {[%emt 0:00:30]} Qxf3 21. Qxf3 {[%emt 0:00:30]} Rxf3 22. Be3 {[%emt 0:00:30]} Re8 23. Kg2 {[%emt 0:00:30]} Rf7 24. Red1 {[%emt 0:00:30]} Nf6 25. Rd3 {[%emt 0:00:30]} Ne4 26. Rc1 {[%emt 0:00:30]} Nd6 27. b3 {[%emt 0:00:30]} Nf5 28. Rc2 {[%emt 0:00:30]} Rfe7 29. Kf3 {[%emt 0:00:30]} h5 30. Nc5 {[%emt 0:00:30]} Bf6 31. b4 {[%emt 0:00:30]} Kf7 32. a4 {[%emt 0:00:30]} g5 33. Nb3 {[%emt 0:00:30]} g4+ 34. Ke2 {[%emt 0:00:30]} Bg5 35. Rcc3 {[%emt 0:00:30]} 0-1

[Event "2nd Gujarat Open 2019"]
[Site "Ahmedabad, Gujarat"]
[Date "2019.09.23"]
[Round "3.23"]
[White "Vlassov, Nikolai"]
[Black "Rathneesh R"]
[Result "1/2-1/2"]
[ECO "B22"]
[WhiteElo "2384"]
[BlackElo "2065"]
[Annotator "NA"]
[PlyCount "68"]
[EventDate "2019.09.22"]
[EventCountry "IND"]
[SourceTitle "playchess.com"]
[Source "ChessBase"]
[SourceQuality "1"]
[TimeControl "5400+30"]

1. e4 {[%emt 0:00:00]} c5 {[%emt 0:00:00]} 2. c3 {[%emt 0:00:00]} Nf6 {[%emt 0:00:57]} 3. e5 {[%emt 0:00:00]} Nd5 {[%emt 0:00:05]} 4. d4 {[%emt 0:00:00]} cxd4 {[%emt 0:01:13]} 5. cxd4 {[%emt 0:00:00]} e6 {[%emt 0:00:34]} 6. Nc3 {[%emt 0:00:00]} Nxc3 {[%emt 0:03:24]} 7. bxc3 {[%emt 0:00:00]} d6 {[%emt 0:00:55]} 8. f4 {[%emt 0:00:00]} dxe5 {[%emt 0:07:15]} 9. fxe5 {[%emt 0:00:00]} Qh4+ {[%emt 0:03:51]} 10. Ke2 {[%emt 0:00:03]} Bd7 {[%emt 0:02:05]} 11. Nf3 {[%emt 0:00:03]} Qe4+ {[%emt 0:09:31]} 12. Kf2 {[%emt 0:00:02]} Be7 {[%emt 0:02:11]} 13. Bd3 {[%emt 0:00:03]} Qc6 {[%emt 0:00:59]} 14. Bd2 {[%emt 0:00:02]} Qc7 {[%emt 0:06:34]} 15. Qe2 {[%emt 0:00:02]} Bc6 {[%emt 0:03:43]} 16. Rhf1 {[%emt 0:00:02]} Nd7 {[%emt 0:03:05]} 17. Kg1 {[%emt 0:00:02]} O-O-O {[%emt 0:05:41]} 18. Ng5 {[%emt 0:00:02]} Nxe5 {[%emt 0:11:21]} 19. dxe5 {[%emt 0:00:21]} Qd7 {[%emt 0:00:58]} 20. Nxf7 {[%emt 0:00:31]} Qxd3 {[%emt 0:01:18]} 21. Qxd3 {[%emt 0:00:32]} Rxd3 {[%emt 0:00:08]} 22. Nxh8 {[%emt 0:06:04]} Rxd2 {[%emt 0:05:02]} 23. Rf4 {[%emt 0:00:37]} Bc5+ {[%emt 0:05:39]} 24. Kf1 {[%emt 0:00:03]} Rxg2 {[%emt 0:00:58]} 25. Rd1 {[%emt 1:34:01]} g5 {[%emt 0:03:30]} 26. Rf6 {[%emt 0:00:00]} Rg1+ {[%emt 0:04:39]} 27. Ke2 {[%emt 0:00:00]} Bb5+ {[%emt 0:00:10]} 28. Kd2 {[%emt 0:00:00]} Rg2+ {[%emt 0:00:37]} 29. Kc1 {[%emt 0:00:00]} Ba3+ {[%emt 0:06:20]} 30. Kb1 {[%emt 0:00:00]} Bc4 {[%emt 0:00:35]} 31. Nf7 {[%emt 0:00:00]} Rb2+ {[%emt 0:06:42]} 32. Ka1 {[%emt 0:00:00]} Rxa2+ {[%emt 0:00:04]} 33. Kb1 {[%emt 0:00:00]} Rb2+ {[%emt 0:00:21]} 34. Ka1 {[%emt 0:00:00]} Ra2+ {[%emt 0:00:05]} 1/2-1/2

[Event "2nd Gujarat Open 2019"]
[Site "Ahmedabad, Gujarat"]
[Date "2019.09.23"]
[Round "3.25"]
[White "Konguvel, Ponnuswamy"]
[Black "Alan Diviya Raj"]
[Result "0-1"]
[ECO "C67"]
[WhiteElo "2374"]
[BlackElo "1943"]
[Annotator "NA"]
[PlyCount "74"]
[EventDate "2019.09.22"]
[EventCountry "IND"]
[SourceTitle "playchess.com"]
[Source "ChessBase"]
[SourceQuality "1"]
[TimeControl "5400+30"]

1. e4 {[%emt 0:00:00]} e5 {[%emt 0:00:00]} 2. Nf3 {[%emt 0:00:00]} Nc6 {[%emt 0:00:00]} 3. Bb5 {[%emt 0:00:19]} Nf6 {[%emt 0:00:00]} 4. O-O {[%emt 0:00:50]} Nxe4 {[%emt 0:00:00]} 5. d4 {[%emt 0:00:33]} Nd6 {[%emt 0:00:05]} 6. Bxc6 {[%emt 0:02:07]} dxc6 {[%emt 0:00:07]} 7. dxe5 {[%emt 0:00:04]} Nf5 {[%emt 0:00:05]} 8. Qxd8+ {[%emt 0:00:04]} Kxd8 {[%emt 0:00:06]} 9. h3 {[%emt 0:00:08]} Be6 {[%emt 0:00:16]} 10. Nc3 {[%emt 0:01:42]} b6 {[%emt 0:00:56]} 11. g4 {[%emt 0:23:51]} Ne7 {[%emt 0:00:18]} 12. Nd4 {[%emt 0:00:18]} Bd7 {[%emt 0:01:34]} 13. Bg5 {[%emt 0:02:37]} Kc8 {[%emt 0:01:15]} 14. e6 {[%emt 0:12:00]} fxe6 {[%emt 0:01:15]} 15. Rfe1 {[%emt 0:00:10]} Nd5 {[%emt 0:07:28]} 16. Nxe6 {[%emt 0:00:15]} Bxe6 {[%emt 0:01:11]} 17. Rxe6 {[%emt 0:00:06]} Nxc3 {[%emt 0:01:59]} 18. bxc3 {[%emt 0:07:24]} Bd6 {[%emt 0:00:47]} 19. Rae1 {[%emt 0:01:38]} Kd7 {[%emt 0:00:13]} 20. f4 {[%emt 0:00:17]} h6 {[%emt 0:06:37]} 21. Bh4 {[%emt 0:02:31]} g5 {[%emt 0:00:06]} 22. Bf2 {[%emt 0:06:02]} gxf4 {[%emt 0:02:39]} 23. Kg2 {[%emt 0:00:21]} Rag8 {[%emt 0:01:20]} 24. Bh4 {[%emt 0:03:35]} Re8 {[%emt 0:35:28]} 25. Rxe8 {[%emt 0:03:31]} Rxe8 {[%emt 0:00:09]} 26. Rxe8 {[%emt 0:00:27]} Kxe8 {[%emt 0:00:05]} 27. Kf3 {[%emt 0:00:01]} Kf7 {[%emt 0:00:09]} 28. Be1 Kg6 {[%emt 0:00:30]} 29. h4 h5 {[%emt 0:00:30]} 30. Bd2 Be7 {[%emt 0:00:30]} 31. g5 Kf5 {[%emt 0:00:30]} 32. Bxf4 Bd8 {[%emt 0:00:30]} 33. c4 c5 {[%emt 0:00:30]} 34. Bg3 a6 {[%emt 0:00:30]} 35. Ke3 c6 {[%emt 0:00:30]} 36. Bd6 Ke6 {[%emt 0:00:30]} 37. Bf8 Bc7 {[%emt 0:00:30]} 0-1